bitfinex/quotes_ETHUSD_20251230
["timestamp","ask_amount","ask_price","bid_price","bid_amount"]
[1767094953433,2.3106,2978.3,2977.9,2.2565]
[1767094954230,2.3106,2978.3,2977.9,0.001]
[1767094954815,2.3106,2978.3,2977.9,2.2565]
[1767094955103,2.3106,2978.5,2977.9,3.35905779]
[1767094955323,2.3106,2978.7,2978.2,2.2555]
[1767094955503,2.3106,2978.7,2978.3,2.2555]
[1767094960116,3.35717351,2978.7,2978.3,2.2555]
[1767094960433,2.3106,2978.6,2978.3,2.2555]
[1767094960636,2.3106,2978.6,2978.0,2.2555]
[1767094961711,2.3106,2978.5,2978.0,2.2555]
[1767094964152,2.3106,2978.5,2977.9,0.001]
[1767094964333,2.3106,2978.5,2977.9,0.22685]
[1767094964506,2.3106,2978.5,2977.9,2.48235]
[1767094965118,2.3106,2978.5,2978.0,0.001]
[1767094965315,2.3106,2978.5,2978.0,2.2565]
[1767094965538,3.3592125,2978.7,2978.0,2.2565]
[1767094965744,0.002,2978.7,2978.2,2.2555]
[1767094966257,5.83548513,2978.7,2978.2,2.2555]
[1767094966558,2.4783,2978.7,2978.2,2.2555]
[1767094966713,0.002,2978.7,2978.2,2.2555]
[1767094966919,0.002,2978.7,2978.3,2.2826]
[1767094967138,0.002,2978.7,2978.4,2.2826]
[1767094967867,2.4783,2978.7,2978.4,2.2826]
[1767094968221,2.4783,2978.7,2978.1,0.248335]
[1767094968749,2.4783,2978.7,2978.1,2.530935]
[1767094970360,2.4783,2978.7,2977.9,0.001]
[1767094970650,2.4763,2978.5,2977.6,3.3593775]
[1767094971727,2.4763,2978.5,2977.6,5.6419775]
[1767094972150,2.4763,2978.5,2977.6,10.56865047]
[1767094973424,2.4763,2978.5,2978.0,0.001]
[1767094974556,2.4763,2978.5,2977.6,4.92667297]
[1767094974853,2.4763,2978.5,2977.7,0.82861932]
[1767094976424,3.35741607,2978.5,2977.8,2.2826]
[1767094976626,3.35731881,2978.6,2977.8,2.2826]
[1767094980760,0.002,2978.5,2977.8,2.2826]
[1767094982033,0.002,2978.5,2977.9,2.4603]
[1767094982251,0.002,2978.5,2978.0,2.4603]
[1767094990779,0.883,2978.5,2978.0,2.4603]
[1767094996486,4.24040231,2978.5,2978.0,2.4603]
[1767094996689,9.16707528,2978.5,2977.5,0.001]
[1767094996984,10.42206821,2978.5,2977.5,0.65187323]
[1767094997190,10.42206821,2978.5,2977.5,2.91997323]
[1767094997565,10.42206821,2978.5,2977.5,6.27844054]
[1767094997865,4.92667297,2978.3,2977.5,0.001]
[1767094998188,10.44558734,2978.5,2977.5,0.001]
[1767094998369,10.44558734,2978.5,2977.5,2.2691]
[1767094998994,10.44558734,2978.5,2977.6,2.2681]
[1767094999163,2.13799293,2978.5,2977.7,2.2681]
[1767094999491,4.24041896,2978.5,2977.5,3.35951313]
[1767095000361,0.883,2978.5,2977.5,8.98613538]
[1767095000566,0.883,2978.5,2977.6,4.92667297]
[1767095001395,0.883,2978.5,2977.6,8.28499828]
[1767095002193,4.24040246,2978.5,2977.6,8.28499828]
[1767095002491,0.42404025,2978.4,2977.6,8.28499828]
[1767095006868,0.42404025,2978.4,2977.6,4.92667297]
[1767095007071,3.78157924,2978.4,2977.6,4.92667297]
[1767095007602,0.42404025,2978.4,2977.6,8.28506989]
[1767095007901,0.42404025,2978.4,2977.6,3.35839692]
[1767095008196,3.78158052,2978.4,2977.5,7.19577297]
[1767095008506,0.46645805,2978.3,2977.5,10.55429203]
[1767095010070,3.82410313,2978.3,2977.5,7.19577297]
[1767095010371,4.92667297,2978.2,2977.5,2.2691]
[1767095010607,7.18178321,2978.3,2977.5,2.2691]
[1767095010896,1.21104562,2978.2,2977.5,2.2691]
[1767095011199,4.56882112,2978.2,2977.5,2.2691]
[1767095011996,1.21104562,2978.2,2977.5,0.001]
[1767095012503,3.82412326,2978.3,2977.5,0.001]
[1767095019910,3.82412326,2978.3,2977.6,2.2681]
[1767095020281,0.46645805,2978.3,2977.6,2.2681]
[1767095021111,0.46645805,2978.3,2977.7,2.2681]
[1767095021485,0.882,2978.2,2977.7,2.2681]
[1767095024009,0.002,2978.4,2977.8,2.2681]
[1767095024183,0.882,2978.3,2977.8,2.2681]
[1767095029619,0.002,2978.9,2978.2,0.02351913]
[1767095029908,0.32412024,2979.0,2978.3,2.4265]
[1767095030592,0.32412024,2979.0,2978.4,2.4265]
[1767095030902,0.002,2979.5,2979.0,2.4265]
[1767095032197,0.002,2979.6,2979.0,2.4265]
[1767095032506,0.002,2979.6,2979.1,2.4265]
[1767095033285,0.002,2979.6,2979.0,3.35681143]
[1767095033485,4.05e-06,2979.6,2979.3,2.4265]
[1767095033703,4.05e-06,2979.6,2979.3,2.66915]
[1767095039120,0.32610405,2979.6,2979.0,2.3432]
[1767095039317,0.32610405,2979.6,2979.1,2.3432]
[1767095041617,0.32610405,2979.6,2979.2,2.3432]
[1767095042117,0.3281,2980.2,2979.6,2.3432]
[1767095042321,0.3281,2980.2,2979.6,2.36333582]
[1767095043119,3.68359717,2980.2,2979.4,2.3432]
[1767095043305,0.306,2980.1,2979.3,1.4509844]
[1767095044026,0.306,2980.1,2979.3,3.92647428]
[1767095044206,0.306,2980.1,2979.5,2.3432]
[1767095044598,0.306,2980.0,2979.1,2.3432]
[1767095044803,0.306,2980.0,2979.1,3.2242]
[1767095045125,0.306,2980.0,2979.2,2.3432]
[1767095046518,3.66172563,2980.0,2979.2,2.3432]
[1767095046825,0.306,2979.9,2979.2,2.3432]
[1767095047003,0.306,2979.9,2979.3,2.3432]
[1767095048724,0.306,2979.6,2979.0,0.001]
[1767095048932,0.306,2979.6,2978.8,2.3432]
[1767095050720,0.305,2979.4,2978.8,2.3432]
[1767095050917,0.66566594,2979.4,2978.8,2.3432]
[1767095051112,0.305,2979.3,2978.8,2.3432]
[1767095053252,0.305,2979.3,2978.5,5.70057189]
[1767095053551,0.305,2979.2,2978.5,2.3432]
[1767095054146,0.305,2979.2,2978.8,0.001]
[1767095054316,0.305,2979.1,2978.8,0.001]
[1767095060545,0.305,2979.1,2978.5,2.3289]
[1767095061044,0.305,2979.1,2978.8,0.001]
[1767095063346,0.305,2979.1,2978.5,2.3289]
[1767095064444,0.303,2979.0,2978.5,2.3289]
[1767095064744,0.303,2979.0,2978.3,3.2099]
[1767095064923,0.303,2979.0,2978.4,2.98565793]
[1767095066724,0.303,2979.0,2978.5,2.3289]
[1767095067254,0.303,2979.0,2978.8,0.001]
[1767095070859,0.303,2979.2,2978.8,2.3299]
[1767095071329,0.303,2979.2,2978.4,2.3289]
[1767095071526,0.302,2979.1,2978.5,2.3289]
[1767095071752,0.302,2979.3,2978.5,2.3289]
[1767095071957,0.302,2979.4,2978.7,2.3289]
[1767095073857,0.302,2979.3,2978.8,0.001]
[1767095074026,0.002,2979.1,2978.9,2.3289]
[1767095075958,0.302,2979.0,2978.6,2.3289]
[1767095080238,0.302,2979.0,2978.6,2.71556454]
[1767095081564,0.002,2979.1,2978.6,2.71556454]
[1767095081764,0.002,2979.1,2978.6,0.38666454]
[1767095081963,0.002,2979.1,2978.7,2.3289]
[1767095086268,0.002,2979.1,2978.9,2.3122]
[1767095092744,0.305,2979.5,2978.8,2.3122]
[1767095092950,0.305,2979.5,2979.0,2.3122]
[1767095093365,0.305,2979.5,2978.7,4.92396644]
[1767095093676,0.305,2979.4,2978.6,2.3122]
[1767095095173,3.35644374,2979.4,2978.6,2.3122]
[1767095095472,0.305,2979.3,2978.6,2.3122]
[1767095101363,0.305,2979.3,2978.7,2.3296]
[1767095102282,0.305,2979.3,2978.7,2.89839904]
[1767095103183,0.002,2979.6,2979.3,2.3296]
[1767095103382,0.305,2979.9,2979.4,2.3296]
[1767095103888,0.002,2980.2,2979.8,4.92396644]
[1767095104182,0.002,2980.2,2979.9,2.3296]
[1767095106093,3.35669153,2980.9,2980.1,2.3296]
[1767095106282,0.002,2980.9,2980.3,2.3296]
[1767095106496,0.006,2980.7,2979.8,2.3296]
[1767095106788,0.006,2980.7,2980.2,2.3296]
[1767095106986,0.002,2980.9,2979.7,2.3296]
[1767095106987,4.92396644,2980.4,2979.7,2.3296]
[1767095107181,0.006,2980.3,2979.7,2.3296]
[1767095111092,0.008,2980.3,2979.7,2.3296]
[1767095113396,0.006,2980.2,2979.7,2.3296]
[1767095113596,0.006,2980.2,2979.7,1.14907869]
[1767095113802,0.006,2980.2,2979.1,4.92396644]
[1767095113803,0.006,2980.1,2979.4,2.3296]
[1767095115702,0.006,2980.1,2979.5,2.3296]
[1767095116198,0.006,2980.2,2979.5,2.3296]
[1767095116368,0.006,2980.2,2979.7,2.3439]
[1767095121011,0.002,2980.3,2979.5,2.3439]
[1767095121214,0.006,2980.1,2979.5,2.3439]
[1767095124713,0.006,2980.0,2979.5,2.3439]
[1767095126314,0.006,2980.0,2979.5,2.3449]
[1767095127318,0.006,2979.9,2979.5,2.3449]
[1767095129317,0.006,2979.9,2979.4,0.001]
[1767095130018,0.005,2979.8,2979.4,0.001]
[1767095130718,0.005,2980.2,2979.5,2.3439]
[1767095131013,3.35739956,2980.3,2979.8,2.3439]
[1767095131197,0.005,2980.2,2979.8,2.3439]
[1767095133089,3.36048668,2980.2,2979.8,2.3439]
[1767095134986,0.005,2980.2,2979.8,2.3439]
[1767095139942,3.36048361,2980.2,2979.8,2.3439]
[1767095141233,0.005,2980.2,2979.8,2.3439]
[1767095141925,0.002,2980.3,2979.8,2.3439]
[1767095142511,0.002,2980.2,2979.8,2.3439]
[1767095143034,0.002,2980.3,2979.9,2.3439]
[1767095145316,0.002,2980.3,2979.9,2.37745817]
[1767095145702,0.009,2980.6,2980.0,2.3439]
[1767095148723,3.36403198,2980.6,2980.0,2.3439]
[1767095149060,3.36403198,2980.6,2980.1,2.2588]
[1767095149906,0.009,2980.5,2980.1,2.2588]
[1767095150098,0.002,2980.3,2980.1,2.2588]
[1767095150302,3.35503198,2980.6,2980.1,2.2588]
[1767095150612,0.009,2980.6,2980.1,2.2588]
[1767095152521,3.36403122,2980.6,2980.1,2.2588]
[1767095157104,3.36603122,2980.6,2980.1,2.2588]
[1767095158938,0.009,2980.5,2980.1,2.2588]
[1767095160804,3.35515082,2980.5,2980.1,2.2588]
[1767095161011,0.009,2980.4,2980.0,0.001]
[1767095161346,0.009,2980.4,2980.0,2.3646]
[1767095161512,0.009,2980.4,2980.0,2.71293462]
[1767095165549,0.009,2980.4,2980.0,2.3646]
[1767095169158,0.009,2980.3,2980.0,0.001]
[1767095169454,0.009,2980.3,2979.5,2.3646]
[1767095169816,0.008,2980.2,2979.3,2.3636]
[1767095170435,0.008,2980.2,2979.4,0.001]
[1767095170723,0.007,2980.1,2979.4,0.001]
[1767095170930,0.007,2980.1,2979.3,2.3636]
[1767095171338,3.35569921,2980.1,2979.3,2.3636]
[1767095171644,0.006,2980.0,2979.3,2.3636]
[1767095173323,0.006,2980.0,2979.3,2.3646]
[1767095173523,0.006,2979.8,2979.3,2.3646]
[1767095180655,0.006,2979.8,2979.4,0.0335638]
[1767095180848,0.006,2979.8,2979.5,2.4095]
[1767095181173,0.006,2980.1,2979.5,2.4095]
[1767095181831,0.006,2980.1,2979.5,2.39272]
[1767095182156,0.0228,2979.9,2979.5,2.39272]
[1767095188658,0.0228,2979.9,2979.3,2.4105]
[1767095190267,0.0228,2979.9,2979.5,0.001]
[1767095190771,2.4313,2979.5,2978.8,0.882]
[1767095190968,2.4313,2979.3,2978.9,2.4105]
[1767095191850,8.2758829,2979.9,2979.0,2.44306831]
[1767095192050,2.4313,2979.8,2979.0,2.44306831]
[1767095192436,2.4313,2979.8,2979.0,2.4095]
[1767095192635,2.4313,2979.6,2979.0,2.4095]
[1767095193568,2.4313,2979.6,2978.9,0.001]
[1767095193770,2.4313,2979.6,2978.9,2.4105]
[1767095194137,2.4313,2979.6,2978.9,5.76743936]
[1767095194342,2.4313,2979.6,2979.0,2.4095]
[1767095198372,2.4313,2979.8,2979.1,2.4095]
[1767095198752,0.002,2979.9,2979.3,2.4095]
[1767095198955,4.9200656,2979.8,2979.1,2.4095]
[1767095199159,2.4615,2979.4,2979.0,2.4095]
[1767095199353,2.4615,2979.4,2979.0,2.98634867]
[1767095200254,2.4615,2979.4,2978.9,0.001]
[1767095200454,2.48501913,2979.4,2978.9,0.001]
[1767095200959,2.4615,2979.4,2978.9,2.4105]
[1767095201674,2.4615,2979.4,2979.0,2.44306831]
[1767095204090,2.4615,2979.6,2979.0,2.44306831]
[1767095205777,2.4615,2979.6,2979.0,2.44406831]
[1767095206081,2.4635,2979.6,2979.1,2.4095]
[1767095208284,2.4846,2980.4,2979.3,4.92295115]
[1767095208593,2.4846,2980.4,2979.9,2.367481]
[1767095208594,2.4826,2980.3,2979.9,2.367481]
[1767095208964,3.56123568,2980.3,2979.9,2.367481]
[1767095209152,2.4826,2980.2,2979.9,2.367481]
[1767095210086,2.4846,2980.4,2979.9,2.367481]
[1767095210676,0.002,2980.6,2980.2,0.017981]
[1767095210986,2.4826,2980.8,2980.3,2.3495]
[1767095211400,2.4826,2980.7,2979.9,2.3495]
[1767095211578,2.4826,2980.7,2980.2,0.017981]
[1767095213274,2.4826,2980.7,2980.2,2.3495]
[1767095214100,2.4826,2980.6,2980.2,2.3495]
[1767095214479,0.881,2981.2,2978.9,3.54]
[1767095214480,0.002,2981.6,2980.4,8.46195115]
[1767095214773,2.4826,2981.9,2981.6,0.017981]
[1767095215278,2.4846,2981.9,2981.6,0.017981]
[1767095219888,2.4846,2981.9,2981.4,2.3495]
[1767095220510,2.4308,2981.8,2980.8,3.35476911]
[1767095220708,2.4308,2981.7,2980.9,2.67417691]
[1767095220878,2.4308,2981.3,2980.6,2.3387]
[1767095221805,2.4308,2981.3,2980.6,2.37225029]
[1767095223208,2.4308,2981.3,2980.8,2.3387]
[1767095223376,0.002,2981.9,2981.2,2.3387]
[1767095223582,2.42081012,2982.2,2981.7,2.3387]
[1767095225608,3.35293331,2982.5,2981.7,3.35376835]
[1767095225609,2.4308,2982.5,2981.7,3.35376835]
[1767095225789,2.4308,2982.5,2981.8,2.3387]
[1767095225992,2.4308,2982.4,2981.8,2.3387]
[1767095228783,2.4308,2982.3,2981.8,2.3387]
[1767095232322,4.94647028,2981.9,2980.1,3.82656803]
[1767095232619,4.94647028,2981.9,2980.3,2.3387]
[1767095232620,4.92295115,2981.2,2980.3,2.3387]
[1767095232920,2.4308,2981.3,2980.5,2.3387]
[1767095233527,2.4308,2981.2,2980.5,2.3387]
[1767095233820,2.4308,2981.2,2980.6,2.3387]
[1767095236593,2.3457,2981.1,2980.5,0.001]
[1767095236812,2.3457,2981.0,2980.5,0.001]
[1767095237400,2.3457,2981.0,2980.5,2.4773]
[1767095240628,2.3457,2980.9,2980.5,2.4773]
[1767095245402,2.3457,2981.2,2980.5,2.4773]
[1767095248418,5.70006236,2981.2,2980.5,2.4773]
[1767095248723,2.3457,2981.1,2980.5,2.4773]
[1767095253219,2.3457,2981.2,2980.5,2.4773]
[1767095254209,2.3457,2982.1,2980.9,4.92295115]
[1767095254413,0.881,2982.0,2981.1,2.4763]
[1767095254603,2.3457,2981.9,2981.1,2.4763]
[1767095254803,2.3457,2981.9,2981.2,2.4763]
[1767095255911,3.2267,2981.9,2981.2,2.4763]
[1767095256131,2.3457,2981.8,2981.2,2.4763]
[1767095256513,2.3457,2981.7,2981.2,2.4763]
[1767095259610,2.3457,2981.6,2980.9,2.4763]
[1767095259813,2.3457,2981.1,2980.6,2.4763]
[1767095260403,3.35404165,2981.5,2980.5,0.001]
[1767095260638,3.2267,2981.4,2980.7,2.4763]
[1767095260831,2.3457,2981.7,2980.9,2.4763]
[1767095261133,2.3457,2981.6,2981.1,2.4763]
[1767095262636,5.69961547,2981.6,2981.1,2.4763]
[1767095263020,2.3457,2981.5,2981.1,2.4763]
[1767095264523,2.3457,2981.4,2980.7,2.4763]
[1767095265104,2.3457,2981.4,2981.0,2.4773]
[1767095266635,5.69983061,2981.4,2981.0,2.4773]
[1767095266934,2.4122,2981.3,2981.0,2.4773]
[1767095267136,2.4122,2981.5,2981.0,2.4773]
[1767095267438,0.002,2983.3,2982.9,2.3385]
[1767095268508,0.002,2983.4,2982.8,0.17503761]
[1767095268708,0.002,2983.4,2982.9,3.35241657]
[1767095268906,0.002,2983.4,2983.0,2.3385]
[1767095271036,6.43233005,2985.0,2982.9,2.3385]
[1767095271037,3.2922,2983.8,2982.9,2.3385]
[1767095271339,0.33142,2983.6,2982.9,2.3385]
[1767095272145,0.33142,2983.6,2983.0,2.3385]
[1767095274326,0.33142,2983.6,2983.0,2.3395]
[1767095276049,2.74362,2983.6,2983.0,2.3395]
[1767095280769,2.74362,2983.6,2983.0,0.001]
[1767095280770,2.2935,2983.5,2983.0,0.001]
[1767095280942,2.2935,2983.3,2983.0,0.001]
[1767095281252,0.5976594,2983.4,2983.0,2.3996]
[1767095281457,2.2935,2983.4,2983.0,2.3996]
[1767095282359,2.62492,2983.6,2983.0,2.3996]
[1767095291570,2.2935,2983.5,2983.0,2.3996]
[1767095314878,2.2955,2983.5,2983.0,2.3996]
[1767095315077,2.2955,2983.5,2982.7,3.35258291]
[1767095315277,0.002,2983.6,2983.0,4.9093418]
[1767095315482,0.002,2983.6,2983.1,2.3797]
[1767095315677,2.3689,2983.6,2983.1,2.3797]
[1767095315998,0.002,2983.6,2983.1,2.3797]
[1767095316179,2.3689,2983.6,2983.1,2.3797]
[1767095319295,2.3689,2983.6,2983.0,4.9093418]
[1767095319486,2.3689,2983.6,2983.0,7.2890418]
[1767095319671,2.3689,2983.6,2983.1,2.3797]
[1767095322588,2.3689,2983.6,2983.2,2.3797]
[1767095322791,4.90815594,2984.4,2983.1,4.90815594]
[1767095322792,2.3669,2984.5,2983.5,2.3797]
[1767095322980,2.3669,2984.3,2983.5,7.28785594]
[1767095323181,2.3669,2984.1,2983.5,7.28785594]
[1767095323614,2.3669,2984.1,2983.7,4.90815594]
[1767095323902,0.88,2984.1,2983.7,4.90815594]
[1767095324108,3.2469,2984.1,2983.8,2.3797]
[1767095324809,3.35075727,2984.4,2983.8,2.3797]
[1767095325011,0.4961,2984.3,2983.8,2.3797]
[1767095325812,0.4961,2984.6,2984.1,4.90815594]
[1767095326110,3.896854,2984.9,2983.9,4.90815594]
[1767095326283,0.4776854,2984.8,2983.9,4.90815594]
[1767095326483,3.896854,2984.9,2983.9,4.90815594]
[1767095327103,3.35030822,2984.8,2983.9,7.24735594]
[1767095327309,3.35030822,2984.8,2984.0,4.90815594]
[1767095328303,6.70040242,2984.9,2984.0,4.90815594]
[1767095329984,0.002,2984.3,2983.6,2.3392]
[1767095330189,0.002,2984.3,2983.7,2.3392]
[1767095330810,0.002,2984.3,2983.5,3.2192]
[1767095331390,0.002,2984.3,2983.5,2.3392]
[1767095333908,0.002,2984.3,2983.3,7.24735594]
[1767095334105,1.25114459,2984.3,2983.3,7.24735594]
[1767095334617,3.35098183,2984.2,2983.3,2.3392]
[1767095337719,3.35143106,2983.8,2983.1,2.3392]
[1767095338298,3.35143106,2983.8,2983.0,0.001]
[1767095338621,6.70286212,2983.8,2983.0,0.001]
[1767095339121,4.90815594,2983.7,2983.0,0.001]
[1767095339491,4.90815594,2983.5,2983.0,0.001]
[1767095339701,0.49081559,2983.4,2983.0,0.001]
[1767095339909,3.84271934,2983.4,2983.0,0.001]
[1767095341018,0.49081559,2983.4,2983.0,0.001]
[1767095341421,0.88,2984.0,2983.0,2.4367]
[1767095341596,0.88,2983.9,2983.3,4.90815594]
[1767095341901,3.35143106,2983.8,2983.2,2.4357]
[1767095342619,6.70286212,2983.8,2983.2,2.4357]
[1767095342824,0.75828621,2983.7,2983.2,2.4357]
[1767095344128,3.35165571,2983.6,2983.0,0.001]
[1767095346224,6.70331142,2983.6,2983.0,0.001]
[1767095346734,3.35165571,2983.6,2983.0,0.001]
[1767095350228,3.35165571,2983.6,2983.0,2.4367]
[1767095350529,4.09779631,2983.6,2983.0,2.4367]
[1767095353529,7.44945202,2983.6,2983.0,0.001]
[1767095354830,4.90815594,2983.5,2983.0,0.001]
[1767095356639,3.3518804,2983.4,2983.0,0.001]
[1767095359155,6.70361414,2983.5,2983.0,0.001]
[1767095359444,6.70361414,2983.5,2982.2,2.38020101]
[1767095359445,0.001,2983.0,2982.2,2.38020101]
[1767095359651,4.90815594,2982.7,2981.8,2.3812]
[1767095359847,0.001,2982.6,2981.8,2.3812]
[1767095360019,0.001,2982.5,2981.8,2.3812]
[1767095360214,0.001,2982.5,2981.8,4.90815594]
[1767095360427,0.001,2982.5,2982.1,2.3812]
[1767095362551,0.001,2982.5,2981.9,2.3812]
[1767095368954,0.001,2982.5,2981.9,2.3822]
[1767095371161,10.05766392,2982.8,2981.8,0.001]
[1767095371361,4.90815594,2982.3,2981.8,0.001]
[1767095371561,0.88,2982.4,2981.8,0.001]
[1767095372543,3.35311672,2982.3,2981.8,0.001]
[1767095375170,4.23300925,2982.4,2981.8,0.001]
[1767095375347,0.42330093,2982.3,2981.8,0.001]
[1767095376370,3.77645572,2982.3,2981.8,0.001]
[1767095378171,4.90815594,2982.2,2981.4,2.3812]
[1767095378673,4.90815594,2982.0,2981.1,2.3812]
[1767095381075,4.23356651,2981.9,2981.1,2.3812]
[1767095381374,1.24952197,2981.8,2981.1,2.3812]
[1767095382966,1.24952197,2981.8,2981.0,0.001]
[1767095383151,6.70758292,2981.7,2981.0,0.001]
[1767095383946,6.70758292,2981.7,2981.0,2.3822]
[1767095385288,2.366,2984.1,2981.9,0.98080643]
[1767095385454,2.366,2983.8,2982.5,2.3812]
[1767095385657,2.366,2983.8,2982.6,2.35197871]
[1767095386163,2.38951913,2983.8,2982.6,2.35197871]
[1767095386577,0.02351913,2983.6,2982.6,2.35197871]
[1767095386883,2.2712,2983.4,2982.6,2.35197871]
[1767095387077,3.1512,2983.3,2982.6,2.35197871]
[1767095390169,3.1512,2983.3,2982.7,2.3064]
[1767095391486,3.1532,2983.3,2982.7,2.3064]
[1767095392790,2.2732,2983.3,2982.8,2.3064]
[1767095392966,0.002,2983.3,2982.8,2.3064]
[1767095393166,0.882,2983.3,2982.8,2.3064]
[1767095398494,2.3515,2983.2,2982.8,2.3064]
[1767095400297,2.3515,2983.2,2982.4,2.4922]
[1767095400489,2.3515,2983.2,2982.5,2.4922]
[1767095406506,2.3515,2983.2,2982.5,2.4932]
[1767095407202,2.3515,2983.1,2982.6,2.4922]
[1767095409701,2.3515,2983.0,2982.6,2.4922]
[1767095410085,5.70372741,2983.1,2982.6,2.4922]
[1767095410283,3.35222741,2983.1,2982.6,2.4922]
[1767095410494,2.68672274,2983.0,2982.6,2.4922]
[1767095410694,2.68672274,2983.0,2982.5,4.91691498]
[1767095411292,2.3515,2982.9,2982.5,4.91691498]
[1767095411498,0.88,2982.8,2982.6,2.4922]
[1767095411834,4.86665395,2983.0,2982.6,2.4922]
[1767095412408,1.7537654,2982.9,2982.6,2.4922]
[1767095412592,1.1791,2982.9,2982.6,2.4922]
[1767095412788,1.1791,2982.8,2981.9,4.91591498]
[1767095412994,1.1791,2982.8,2982.0,2.4922]
[1767095414321,1.1791,2982.8,2982.0,2.48209886]
[1767095414518,1.1882,2982.7,2982.0,2.48209886]
[1767095418522,1.1882,2982.6,2982.0,2.48209886]
[1767095422202,1.1882,2982.6,2982.0,2.48309886]
[1767095426316,4.54098524,2982.6,2982.0,2.48309886]
[1767095426518,1.1882,2982.5,2982.0,2.48309886]
[1767095427419,1.1882,2982.4,2982.0,2.48309886]
[1767095427797,1.1882,2982.4,2981.8,0.001]
[1767095427798,1.1882,2982.4,2981.8,2.2982]
[1767095428619,3.353007,2982.4,2981.8,2.2982]
[1767095428823,1.1872,2982.3,2981.8,2.2982]
[1767095431414,1.1872,2982.3,2981.5,2.2972]
[1767095431415,1.1852,2982.2,2981.5,2.2972]
[1767095431620,1.1852,2982.0,2981.5,2.2972]
[1767095432423,1.1852,2982.2,2981.5,2.2972]
[1767095432925,4.5385416,2982.1,2981.5,2.2972]
[1767095434606,1.1352,2982.1,2981.5,2.2972]
[1767095435626,4.48864182,2982.1,2981.5,2.2972]
[1767095438601,4.48864182,2982.1,2981.5,2.2982]
[1767095438806,1.1352,2982.0,2981.5,2.2982]
[1767095440137,1.1352,2981.9,2981.5,2.2982]
[1767095443042,4.4887755,2981.9,2981.5,2.2982]
[1767095443935,3.3535755,2981.9,2981.5,2.2982]
[1767095444138,6.70600858,2982.4,2981.5,2.2982]
[1767095444352,1.1352,2982.3,2981.7,2.2972]
[1767095444542,1.1352,2982.3,2981.9,7.04181427]
[1767095446139,1.1352,2982.3,2981.9,1.9562]
[1767095446334,5.76012915,2982.2,2981.7,4.74481165]
[1767095446542,5.76012915,2982.2,2981.8,2.3453]
[1767095446744,6.75944249,2982.2,2981.8,2.3453]
[1767095450046,6.75945902,2982.2,2981.8,2.3453]
[1767095450550,6.75945902,2982.2,2981.8,2.1773]
[1767095450751,6.75945902,2982.2,2981.8,1.3381502]
[1767095451642,10.1127047,2982.2,2981.8,2e-08]
[1767095451835,2.4069,2982.0,2981.5,7.25891427]
[1767095453239,5.76035677,2982.0,2981.5,7.25891427]
[1767095453440,2.4069,2981.9,2981.5,7.25891427]
[1767095454038,2.4069,2981.9,2981.5,2.3463]
[1767095454238,2.4069,2981.9,2981.5,0.001]
[1767095454550,2.4069,2981.8,2981.4,2.41261427]
[1767095455137,2.4069,2981.8,2981.5,2.3453]
[1767095456146,2.4069,2981.8,2981.5,2.3463]
[1767095457157,0.67718266,2981.9,2981.5,2.3463]
[1767095457359,5.76036755,2982.0,2981.5,2.3463]
[1767095457858,2.4069,2981.9,2981.5,2.3463]
[1767095464956,2.4069,2981.9,2981.5,0.001]
[1767095466257,2.4069,2981.9,2981.5,2.2914]
[1767095466764,5.76047664,2981.9,2981.5,2.2914]
[1767095466969,2.84524766,2981.8,2981.5,2.2914]
[1767095467170,2.2692,2981.8,2981.5,2.2914]
[1767095469471,2.2692,2981.6,2981.0,0.001]
[1767095469763,2.2692,2981.6,2981.0,2.2914]
[1767095470133,2.2692,2981.5,2981.0,2.2914]
[1767095470468,2.58412,2981.4,2981.0,2.2914]
[1767095471460,2.2692,2981.3,2980.8,2.2914]
[1767095472159,2.2692,2981.3,2980.6,4.90550692]
[1767095473065,2.2692,2981.3,2980.6,7.19590692]
[1767095473450,2.2692,2981.3,2980.7,2.2904]
[1767095473765,2.2692,2981.2,2980.7,2.2904]
[1767095474840,2.2692,2981.2,2980.6,4.90550692]
[1767095475138,2.2692,2981.2,2980.6,7.19590692]
[1767095475766,2.2692,2981.2,2980.8,4.91261427]
[1767095476348,0.31492,2981.4,2980.8,4.91261427]
[1767095476568,2.3854,2981.3,2980.8,7.21951427]
[1767095476942,2.3854,2981.3,2980.9,2.3069]
[1767095477574,2.3854,2981.3,2980.6,2.3069]
[1767095477776,2.3854,2981.3,2980.7,0.03354916]
[1767095478154,2.3854,2981.3,2980.7,7.25306343]
[1767095478354,2.3854,2981.3,2980.7,7.21951427]
[1767095478678,2.3854,2981.3,2980.5,3.35612087]
[1767095478679,0.02351913,2981.1,2980.5,0.001]
[1767095478846,0.881,2981.0,2980.5,0.001]
[1767095479352,0.881,2981.1,2980.5,2.34145141]
[1767095480444,0.881,2981.1,2980.5,2.3079]
[1767095480644,3.35444607,2981.2,2980.5,2.3079]
[1767095480845,4.96371974,2981.2,2980.7,2.3069]
[1767095482539,4.96371974,2981.2,2980.5,2.3079]
[1767095483274,4.96371974,2981.2,2980.5,0.001]
[1767095483581,4.96371974,2981.2,2980.5,2.3079]
[1767095484173,8.31816587,2981.2,2980.5,2.3079]
[1767095484378,0.83181659,2981.1,2980.5,2.3079]
[1767095485682,0.83181659,2981.1,2980.6,2.3069]
[1767095486654,4.18630201,2981.1,2980.6,2.3069]
[1767095491283,4.18630201,2981.1,2980.5,4.91361427]
[1767095491481,7.54078743,2981.1,2980.5,4.91361427]
[1767095491889,7.54078743,2981.1,2980.6,2.3069]